fUST/lending_fUST_20240902
["ID","MTS","AMOUNT","RATE_DAILY","PERIOD"]
[336925921,1725244252604,-584.36,0.00025205,2]
[336925922,1725244252614,-500.0,0.00025205,2]
[336925923,1725244252623,-500.0,0.00025205,2]
[336925924,1725244252632,-1473.81,0.00025205,2]
[336925925,1725244252642,-771.66,0.00025205,2]
[336925926,1725244252652,-523.46,0.00025205,2]
[336925927,1725244252662,-532.51,0.00025205,2]
[336925928,1725244252671,-854.3,0.00025205,2]
[336925929,1725244252680,-500.0,0.00025205,2]
[336925930,1725244252689,-522.04,0.00025205,2]
[336925931,1725244252698,-7078.87,0.00025205,2]
[336925932,1725244252708,-828.09,0.00025205,2]
[336925933,1725244252718,-565.15,0.00025205,2]
[336925934,1725244252727,-500.0,0.00025205,2]
[336925935,1725244252736,-500.0,0.00025205,2]
[336925936,1725244252746,-500.0,0.00025205,2]
[336925937,1725244252755,-1368.86,0.00025205,2]
[336925938,1725244252766,-1446.34,0.00025205,2]
[336925939,1725244252776,-500.0,0.00025205,2]
[336925940,1725244252785,-500.0,0.00025205,2]
[336925941,1725244252795,-1217.74,0.00025205,2]
[336925942,1725244252805,-1577.1,0.00025205,2]
[336925943,1725244252815,-686.55,0.00025205,2]
[336925944,1725244252827,-689.03,0.00025205,2]
[336925945,1725244252838,-500.0,0.00025205,2]
[336925946,1725244252848,-500.0,0.00025205,2]
[336925947,1725244252859,-502.32487586,0.00025205,2]
[336925948,1725244252869,-1195.91,0.00025205,2]
[336925949,1725244252878,-500.0,0.00025205,2]
[336925950,1725244252888,-500.0,0.00025205,2]
[336925951,1725244252897,-2844.99224207,0.00025205,2]
[336925952,1725244253313,-377.21775793,0.00025205,2]
[336925953,1725244253324,-500.0,0.00025205,2]
[336925954,1725244253334,-500.0,0.00025205,2]
[336925955,1725244253343,-1060.84,0.00025205,2]
[336925956,1725244253352,-1192.01,0.00025205,2]
[336925957,1725244253361,-2658.99,0.00025205,2]
[336925958,1725244253370,-500.0,0.00025205,2]
[336925959,1725244253490,-500.0,0.00025205,2]
[336925960,1725244253503,-500.0,0.00025205,2]
[336925961,1725244253512,-1057.63,0.00025205,2]
[336925962,1725244253522,-1126.56,0.00025205,2]
[336925963,1725244253531,-502.33822911,0.00025205,2]
[336925964,1725244253543,-1146.75,0.00025205,2]
[336925965,1725244253552,-1788.13,0.00025205,2]
[336925966,1725244253563,-9068.51,0.00025205,2]
[336925967,1725244253574,-1162.01,0.00025205,2]
[336925968,1725244253584,-500.0,0.00025205,2]
[336925969,1725244253592,-500.0,0.00025205,2]
[336925970,1725244253602,-500.0,0.00025205,2]
[336925971,1725244253612,-500.0,0.00025205,2]
[336925972,1725244253623,-500.0,0.00025205,2]
[336925973,1725244253632,-500.0,0.00025205,2]
[336925974,1725244253642,-500.0,0.00025205,2]
[336925975,1725244253652,-500.0,0.00025205,2]
[336925976,1725244253663,-500.0,0.00025205,2]
[336925977,1725244253672,-284.61055484,0.00025205,2]
[336925978,1725244253682,-159.641674,0.00025296,2]
[336925979,1725244253691,-330.274636,0.00025296,2]
[336925980,1725244253702,-159.641673,0.00025296,2]
[336925981,1725244253713,-190.360738,0.00025296,2]
[336925982,1725244253724,-159.641674,0.00025296,2]
[336925983,1725244253735,-180.070429,0.00025296,2]
[336925984,1725244253745,-159.641674,0.00025296,2]
[336925985,1725244253757,-180.07043,0.00025296,2]
[336925986,1725244253768,-150.112233,0.000253,8]
[336925987,1725244253778,-150.112233,0.000254,9]
[336925988,1725244253788,-500.0,0.00025478,2]
[336925989,1725244253798,-500.0,0.00025478,2]
[336925990,1725244253810,-500.0,0.00025478,2]
[336925991,1725244253821,-500.0,0.00025479,2]
[336925992,1725244253830,-561.37,0.00025479,2]
[336925993,1725244253840,-500.0,0.00025479,2]
[336925994,1725244253850,-501.64022452,0.00025479,2]
[336925995,1725244253861,-536.04124177,0.00025479,2]
[336925996,1725244253871,-500.0,0.00025479,2]
[336925997,1725244253880,-500.0,0.00025479,2]
[336925998,1725244253890,-580.6195655,0.00025479,2]
[336925999,1725244253900,-500.0,0.00025479,2]
[336926000,1725244253908,-500.0,0.00025479,2]
[336926001,1725244253918,-419.1288234,0.00025479,2]
[336926002,1725244253928,-500.0,0.00025479,2]
[336926003,1725244253939,-500.0,0.00025479,2]
[336926004,1725244253949,-503.03954812,0.00025479,2]
[336926005,1725244253958,-501.53643517,0.00025479,2]
[336926006,1725244253970,-500.0,0.00025479,2]
[336926007,1725244253979,-500.0,0.00025479,2]
[336926008,1725244253988,-500.0,0.00025479,2]
[336926009,1725244253997,-500.0,0.00025479,2]
[336926010,1725244254007,-500.0,0.00025479,2]
[336926011,1725244254018,-500.0,0.00025479,2]
[336926012,1725244254031,-500.0,0.00025479,2]
[336926013,1725244254040,-500.0,0.00025479,2]
[336926014,1725244254051,-500.0,0.00025479,2]
[336926015,1725244254062,-500.0,0.00025479,2]
[336926016,1725244254071,-210.05388561,0.00025479,2]
[336926017,1725244254081,-500.0,0.00025479,2]
[336926018,1725244254090,-500.0,0.00025479,2]
[336926019,1725244254099,-500.0,0.00025479,2]
[336926020,1725244254111,-638.44,0.00025479,2]
[336926021,1725244254123,-500.0,0.00025479,2]
[336926022,1725244254134,-500.0,0.00025479,2]
[336926023,1725244254144,-664.15,0.00025479,2]
[336926024,1725244254153,-500.0,0.00025479,2]
[336926025,1725244254164,-500.0,0.00025479,2]
[336926026,1725244254172,-500.0,0.00025479,2]
[336926027,1725244254182,-500.0,0.00025479,2]
[336926028,1725244254191,-561.25,0.00025479,2]
[336926029,1725244254200,-500.0,0.00025479,2]
[336926030,1725244254209,-500.0,0.00025479,2]
[336926031,1725244254218,-500.0,0.00025479,2]
[336926032,1725244254227,-348.31843236,0.00025479,2]
[336926033,1725244254236,-47.66269765,0.00025479,2]
[336926034,1725244254249,-452.33730235,0.00025479,2]
[336926035,1725244254259,-500.0,0.00025479,2]
[336926036,1725244254268,-500.0,0.00025479,2]
[336926037,1725244254277,-500.0,0.00025479,2]
[336926038,1725244254286,-500.0,0.00025479,2]
[336926039,1725244254296,-1199.58,0.00025479,2]
[336926040,1725244254307,-500.0,0.00025479,2]
[336926041,1725244254316,-500.0,0.00025479,2]
[336926042,1725244254325,-500.0,0.00025479,2]
[336926043,1725244254334,-500.0,0.00025479,2]
[336926044,1725244254343,-500.0,0.00025479,2]
[336926045,1725244254352,-500.0,0.00025479,2]
[336926046,1725244254362,-500.0,0.00025479,2]
[336926047,1725244254371,-983.39,0.00025479,2]
[336926048,1725244254381,-500.0,0.00025479,2]
[336926049,1725244254390,-500.0,0.00025479,2]
[336926050,1725244254398,-561.13029631,0.00025479,2]
[336926051,1725244254408,-500.0,0.00025479,2]
[336926052,1725244254417,-500.0,0.00025479,2]
[336926053,1725244254426,-707.21,0.00025479,2]
[336926054,1725244254436,-711.51,0.00025479,2]
[336926055,1725244254445,-591.72,0.00025479,2]
[336926056,1725244254453,-500.0,0.00025479,2]
[336926057,1725244254462,-509.95,0.00025479,2]
[336926058,1725244254471,-500.0,0.00025479,2]
[336926059,1725244254480,-500.0,0.00025479,2]
[336926060,1725244254491,-500.0,0.00025479,2]
[336926061,1725244254511,-500.0,0.00025479,2]
[336926062,1725244254527,-837.03,0.00025479,2]
[336926063,1725244254539,-500.0,0.00025479,2]
[336926064,1725244254554,-500.0,0.00025479,2]
[336926065,1725244254568,-674.02,0.00025479,2]
[336926066,1725244254583,-500.0,0.00025479,2]
[336926067,1725244254597,-671.54,0.00025479,2]
[336926068,1725244254612,-520.61,0.00025479,2]
[336926069,1725244254627,-634.79,0.00025479,2]
[336926070,1725244254643,-557.69,0.00025479,2]
[336926071,1725244254658,-500.0,0.00025479,2]
[336926072,1725244254672,-699.39,0.00025479,2]
[336926073,1725244254683,-500.0,0.00025479,2]
[336926074,1725244254696,-500.0,0.00025479,2]
[336926075,1725244254709,-500.0,0.00025479,2]
[336926076,1725244254724,-3329.95,0.00025479,2]
[336926077,1725244254737,-500.0,0.00025479,2]
[336926078,1725244254755,-500.0,0.00025479,2]
[336926079,1725244254770,-550.13,0.00025479,2]
[336926080,1725244254780,-500.0,0.00025479,2]
[336926081,1725244254792,-1131.15,0.00025479,2]
[336926082,1725244254808,-500.0,0.00025479,2]
[336926083,1725244254822,-500.0,0.00025479,2]
[336926084,1725244254833,-513.48,0.00025479,2]
[336926085,1725244254847,-500.0,0.00025479,2]
[336926086,1725244254861,-198.46229689,0.00025479,2]
[336926087,1725244254872,-544.04305671,0.00025479,2]
[336926088,1725244254883,-626.48,0.00025479,2]
[336926089,1725244254895,-880.22,0.00025479,2]
[336926090,1725244254909,-509.61472819,0.00025479,2]
[336926091,1725244254921,-500.0,0.00025479,2]
[336926092,1725244254935,-500.0,0.00025479,2]
[336926093,1725244254948,-500.0,0.00025479,2]
[336926094,1725244254960,-500.0,0.00025479,2]
[336926095,1725244254972,-842.85,0.00025479,2]
[336926096,1725244254984,-660.85,0.00025479,2]
[336926097,1725244254997,-500.0,0.00025479,2]
[336926098,1725244255010,-523.02131651,0.00025479,2]
[336926099,1725244255022,-500.0,0.00025479,2]
[336926100,1725244255035,-500.0,0.00025479,2]
[336926101,1725244255049,-500.0,0.00025479,2]
[336926102,1725244255062,-952.82,0.00025479,2]
[336926103,1725244255074,-511.55070316,0.00025479,2]
[336926104,1725244255087,-926.65,0.00025479,2]
[336926105,1725244255099,-507.39166314,0.00025479,2]
[336926106,1725244255111,-891.28,0.00025479,2]
[336926107,1725244255123,-732.92,0.00025479,2]
[336926108,1725244255135,-500.0,0.00025479,2]
[336926109,1725244255148,-534.39391697,0.00025479,2]
[336926110,1725244255161,-500.0,0.00025479,2]
[336926111,1725244255172,-500.0,0.00025479,2]
[336926112,1725244255184,-1265.8,0.00025479,2]
[336926113,1725244255196,-500.0,0.00025479,2]
[336926114,1725244255207,-1169.73,0.00025479,2]
[336926115,1725244255219,-500.0,0.00025479,2]
[336926116,1725244255231,-500.0,0.00025479,2]
[336926117,1725244255244,-1792.34,0.00025479,2]
[336926118,1725244255257,-500.0,0.00025479,2]
[336926119,1725244255269,-1795.86,0.00025479,2]
[336926120,1725244255281,-500.0,0.00025479,2]
[336926121,1725244255293,-500.0,0.00025479,2]
[336926122,1725244255304,-500.0,0.00025479,2]
[336926123,1725244255316,-500.0,0.00025479,2]
[336926124,1725244255327,-2277.02,0.00025479,2]
[336926125,1725244255339,-500.0,0.00025479,2]
[336926126,1725244255353,-500.0,0.00025479,2]
[336926127,1725244255366,-500.0,0.00025479,2]
[336926128,1725244255377,-500.0,0.00025479,2]
[336926129,1725244255387,-500.0,0.00025479,2]
[336926130,1725244255397,-1356.19,0.00025479,2]
[336926131,1725244255407,-12312.44,0.00025479,2]
[336926132,1725244255416,-840.25,0.00025479,2]
[336926133,1725244255425,-2656.64,0.00025479,2]
[336926134,1725244255435,-1908.92,0.00025479,2]
[336926135,1725244255444,-500.0,0.00025479,2]
[336926136,1725244255454,-718.57,0.00025479,2]
[336926137,1725244255463,-568.35,0.00025479,2]
[336926138,1725244255472,-1873.9,0.00025479,2]
[336926139,1725244255481,-500.0,0.00025479,2]
[336926140,1725244255491,-500.0,0.00025479,2]
[336926141,1725244255504,-516.77,0.00025479,2]
[336926142,1725244255514,-500.0,0.00025479,2]
[336926143,1725244255524,-2353.96,0.00025479,2]
[336926144,1725244255533,-2544.03,0.00025479,2]
[336926145,1725244255543,-781.86,0.00025479,2]
[336926146,1725244255552,-584.55,0.00025479,2]
[336926147,1725244255561,-500.0,0.00025479,2]
[336926148,1725244255571,-530.75,0.00025479,2]
[336926149,1725244255581,-1003.77,0.00025479,2]
[336926150,1725244255591,-500.0,0.00025479,2]
[336926151,1725244255600,-500.0,0.00025479,2]
[336926152,1725244255610,-500.0,0.00025479,2]
[336926153,1725244255620,-1362.28,0.00025479,2]
[336926154,1725244255629,-500.0,0.00025479,2]
[336926155,1725244255639,-1079.24,0.00025479,2]
[336926156,1725244255648,-1444.21,0.00025479,2]
[336926157,1725244255657,-647.21359709,0.00025479,2]
[336926158,1725244255670,-1337.77,0.00025479,2]
[336926159,1725244255679,-500.0,0.00025479,2]
[336926160,1725244255688,-1483.34,0.00025479,2]
[336926161,1725244255698,-575.48,0.00025479,2]
[336926162,1725244255708,-500.0,0.00025479,2]
[336926163,1725244255718,-500.0,0.00025479,2]
[336926164,1725244256025,-1890.91,0.00025479,2]
[336926165,1725244256039,-4444.47,0.00025479,2]
[336926166,1725244256048,-1535.45,0.00025479,2]
[336926167,1725244256057,-1845.12,0.00025479,2]
[336926168,1725244256067,-2261.1,0.00025479,2]
[336926169,1725244256078,-619.59,0.00025479,2]
[336926170,1725244256086,-500.0,0.00025479,2]
[336926171,1725244256095,-1434.23,0.00025479,2]
[336926172,1725244256105,-1255.7,0.00025479,2]
[336926173,1725244256114,-534.48816533,0.00025479,2]
[336926174,1725244256123,-1004.6,0.00025479,2]
[336926175,1725244256132,-983.95,0.00025479,2]
[336926176,1725244256141,-578.71,0.00025479,2]
[336926177,1725244256151,-1246.24,0.00025479,2]
[336926178,1725244256160,-1327.41,0.00025479,2]
[336926179,1725244256169,-878.27,0.00025479,2]
[336926180,1725244256179,-1189.91,0.00025479,2]
[336926181,1725244256191,-919.9,0.00025479,2]
[336926182,1725244256200,-584.36,0.00025479,2]
[336926183,1725244256212,-500.0,0.00025479,2]
[336926184,1725244256222,-1473.81,0.00025479,2]
[336926185,1725244256231,-771.66,0.00025479,2]
[336926186,1725244256241,-523.46,0.00025479,2]
[336926187,1725244256251,-532.51,0.00025479,2]
[336926188,1725244256268,-854.3,0.00025479,2]
[336926189,1725244256278,-500.0,0.00025479,2]
[336926190,1725244256289,-522.04,0.00025479,2]
[336926191,1725244256301,-7078.87,0.00025479,2]
[336926192,1725244256312,-828.09,0.00025479,2]
[336926193,1725244256325,-500.0,0.00025479,2]
[336926194,1725244256336,-535.69773348,0.00025479,2]
[336926195,1725244256347,-500.0,0.00025479,2]
[336926196,1725244256357,-1368.86,0.00025479,2]
[336926197,1725244256366,-1446.34,0.00025479,2]
[336926198,1725244256376,-500.0,0.00025479,2]
[336926199,1725244256385,-500.0,0.00025479,2]
[336926200,1725244256397,-1217.74,0.00025479,2]
[336926201,1725244256407,-1577.1,0.00025479,2]
[336926202,1725244256417,-686.55,0.00025479,2]
[336926203,1725244256427,-689.03,0.00025479,2]
[336926204,1725244256438,-500.0,0.00025479,2]
[336926205,1725244256448,-505.89861142,0.00025479,2]
[336926206,1725244256459,-1195.91,0.00025479,2]
[336926207,1725244256469,-500.0,0.00025479,2]
[336926208,1725244256478,-500.0,0.00025479,2]
[336926209,1725244256487,-3222.21,0.00025479,2]
[336926210,1725244256499,-500.0,0.00025479,2]
[336926211,1725244256508,-1060.84,0.00025479,2]
[336926212,1725244256520,-1192.01,0.00025479,2]
[336926213,1725244256531,-2658.99,0.00025479,2]
[336926214,1725244256544,-500.0,0.00025479,2]
[336926215,1725244256554,-638.19648141,0.00025479,2]
[336926216,1725244256565,-1057.63,0.00025479,2]
[336926217,1725244256577,-1126.56,0.00025479,2]
[336926218,1725244256586,-1146.75,0.00025479,2]
[336926219,1725244256595,-1788.13,0.00025479,2]
[336926220,1725244256605,-9068.51,0.00025479,2]
[336926221,1725244256615,-1162.01,0.00025479,2]
[336926222,1725244256624,-459.24370947,0.00025479,2]
[336926223,1725244256634,-527.89805533,0.00025479,2]
[336926224,1725244256643,-500.0,0.00025479,2]
[336926225,1725244256653,-500.0,0.00025479,2]
[336926226,1725244256662,-500.0,0.00025479,2]
[336926227,1725244256671,-203.44998282,0.00025479,2]
[336926228,1725244256680,-500.0,0.00025479,2]
[336926229,1725244256690,-500.0,0.00025479,2]
[336926230,1725244256701,-500.0,0.00025479,2]
[336926231,1725244256711,-1511.69,0.000255,14]
[336926232,1725244256721,-1000.0,0.00025521,2]
[336926233,1725244256731,-159.641674,0.00025613,2]
[336926234,1725244256741,-330.274636,0.00025613,2]
[336926235,1725244256750,-159.641673,0.00025613,2]
[336926236,1725244256761,-159.641674,0.00025613,2]
[336926237,1725244256771,-159.641674,0.00025613,2]
[336926238,1725244256780,-150.0,0.00025634,2]
[336926239,1725244256790,-523.0,0.00025634,2]
[336926240,1725244256799,-180.070429,0.00025718,2]
[336926241,1725244256809,-180.07043,0.00025718,2]
[336926242,1725244256818,-500.0,0.00025752,2]
[336926243,1725244256827,-500.0,0.00025752,2]
[336926244,1725244256837,-561.37,0.00025753,2]
[336926245,1725244256846,-500.0,0.00025753,2]
[336926246,1725244256856,-500.0,0.00025753,2]
[336926247,1725244256865,-500.0,0.00025753,2]
[336926248,1725244256879,-500.0,0.00025753,2]
[336926249,1725244256889,-500.0,0.00025753,2]
[336926250,1725244256898,-500.0,0.00025753,2]
[336926251,1725244256907,-500.0,0.00025753,2]
[336926252,1725244256917,-500.0,0.00025753,2]
[336926253,1725244256927,-500.0,0.00025753,2]
[336926254,1725244256936,-500.0,0.00025753,2]
[336926255,1725244256946,-500.0,0.00025753,2]
[336926256,1725244256955,-500.0,0.00025753,2]
[336926257,1725244256964,-500.0,0.00025753,2]
[336926258,1725244256973,-638.44,0.00025753,2]
[336926259,1725244256982,-500.0,0.00025753,2]
[336926260,1725244256992,-500.0,0.00025753,2]
[336926261,1725244257002,-664.15,0.00025753,2]
[336926262,1725244257017,-500.0,0.00025753,2]
[336926263,1725244257027,-561.25,0.00025753,2]
[336926264,1725244257036,-468.15025914,0.00025753,2]
[336926265,1725244257045,-500.0,0.00025753,2]
[336926266,1725244257055,-500.0,0.00025753,2]
[336926267,1725244257065,-500.0,0.00025753,2]
[336926268,1725244257074,-500.0,0.00025753,2]
[336926269,1725244257084,-1199.58,0.00025753,2]
[336926270,1725244257094,-500.0,0.00025753,2]
[336926271,1725244257103,-231.10479412,0.00025753,2]
[336926272,1725244257113,-500.0,0.00025753,2]
[336926273,1725244257122,-374.46794606,0.00025753,2]
[336926274,1725244257132,-500.0,0.00025753,2]
[336926275,1725244257142,-500.0,0.00025753,2]
[336926276,1725244257152,-983.39,0.00025753,2]
[336926277,1725244257162,-500.0,0.00025753,2]
[336926278,1725244257171,-500.0,0.00025753,2]
[336926279,1725244257181,-500.0,0.00025753,2]
[336926280,1725244257191,-500.0,0.00025753,2]
[336926281,1725244257201,-707.21,0.00025753,2]
[336926282,1725244257211,-711.51,0.00025753,2]
[336926283,1725244257222,-591.72,0.00025753,2]
[336926284,1725244257231,-282.1103834,0.00025753,2]
[336926285,1725244257241,-509.95,0.00025753,2]
[336926286,1725244257251,-500.0,0.00025753,2]
[336926287,1725244257261,-505.818296,0.00025753,2]
[336926288,1725244257271,-500.0,0.00025753,2]
[336926289,1725244257281,-500.0,0.00025753,2]
[336926290,1725244257290,-837.03,0.00025753,2]
[336926291,1725244257300,-500.0,0.00025753,2]
[336926292,1725244257309,-500.0,0.00025753,2]
[336926293,1725244257319,-674.02,0.00025753,2]
[336926294,1725244257329,-500.0,0.00025753,2]
[336926295,1725244257338,-671.54,0.00025753,2]
[336926296,1725244257348,-520.61,0.00025753,2]
[336926297,1725244257358,-634.79,0.00025753,2]
[336926298,1725244257368,-557.69,0.00025753,2]
[336926299,1725244257378,-500.0,0.00025753,2]
[336926300,1725244257387,-699.39,0.00025753,2]
[336926301,1725244257397,-500.0,0.00025753,2]
[336926302,1725244257408,-500.0,0.00025753,2]
[336926303,1725244257417,-500.0,0.00025753,2]
[336926304,1725244257427,-3329.95,0.00025753,2]
[336926305,1725244257437,-625.58846459,0.00025753,2]
[336926306,1725244257447,-500.0,0.00025753,2]
[336926307,1725244257456,-550.13,0.00025753,2]
[336926308,1725244257466,-500.0,0.00025753,2]
[336926309,1725244257475,-1131.15,0.00025753,2]
[336926310,1725244257485,-500.0,0.00025753,2]
[336926311,1725244257497,-500.0,0.00025753,2]
[336926312,1725244257507,-513.48,0.00025753,2]
[336926313,1725244257522,-500.0,0.00025753,2]
[336926314,1725244257531,-626.48,0.00025753,2]
[336926315,1725244257542,-880.22,0.00025753,2]
[336926316,1725244257551,-500.0,0.00025753,2]
[336926317,1725244257560,-508.41094868,0.00025753,2]
[336926318,1725244257571,-500.0,0.00025753,2]
[336926319,1725244257580,-842.85,0.00025753,2]
[336926320,1725244257589,-660.85,0.00025753,2]
[336926321,1725244257599,-500.0,0.00025753,2]
[336926322,1725244257608,-500.0,0.00025753,2]
[336926323,1725244257617,-500.0,0.00025753,2]
[336926324,1725244257626,-151.0,0.00025753,7]
[336926325,1725244257636,-500.0,0.00025753,2]
[336926326,1725244257646,-952.82,0.00025753,2]
[336926327,1725244257656,-926.65,0.00025753,2]
[336926328,1725244257666,-891.28,0.00025753,2]
[336926329,1725244257676,-732.92,0.00025753,2]
[336926330,1725244257686,-500.0,0.00025753,2]
[336926331,1725244257697,-500.0,0.00025753,2]
[336926332,1725244257708,-500.0,0.00025753,2]
[336926333,1725244257717,-1265.8,0.00025753,2]
[336926334,1725244257726,-500.0,0.00025753,2]
[336926335,1725244257736,-1169.73,0.00025753,2]
[336926336,1725244257746,-500.0,0.00025753,2]
[336926337,1725244257756,-500.0,0.00025753,2]
[336926338,1725244257766,-1792.34,0.00025753,2]
[336926339,1725244257776,-500.0,0.00025753,2]
[336926340,1725244257786,-1795.86,0.00025753,2]
[336926341,1725244257796,-500.0,0.00025753,2]
[336926342,1725244257806,-500.0,0.00025753,2]
[336926343,1725244257815,-500.0,0.00025753,2]
[336926344,1725244257824,-500.0,0.00025753,2]
[336926345,1725244257834,-2277.02,0.00025753,2]
[336926346,1725244257843,-500.0,0.00025753,2]
[336926347,1725244257852,-500.0,0.00025753,2]
[336926348,1725244257861,-500.0,0.00025753,2]
[336926349,1725244257871,-500.0,0.00025753,2]
[336926350,1725244257880,-1356.19,0.00025753,2]
[336926351,1725244257890,-12312.44,0.00025753,2]
[336926352,1725244257899,-840.25,0.00025753,2]
[336926353,1725244257909,-2656.64,0.00025753,2]
[336926354,1725244257918,-1908.92,0.00025753,2]
[336926355,1725244257927,-500.0,0.00025753,2]
[336926356,1725244257936,-718.57,0.00025753,2]
[336926357,1725244257945,-568.35,0.00025753,2]
[336926358,1725244257954,-1873.9,0.00025753,2]
[336926359,1725244257964,-500.0,0.00025753,2]
[336926360,1725244257973,-500.0,0.00025753,2]
[336926361,1725244257983,-516.77,0.00025753,2]
[336926362,1725244257992,-500.0,0.00025753,2]
[336926363,1725244258002,-2353.96,0.00025753,2]
[336926364,1725244258011,-2544.03,0.00025753,2]
[336926365,1725244258020,-781.86,0.00025753,2]
[336926366,1725244258030,-584.55,0.00025753,2]
[336926367,1725244258039,-500.0,0.00025753,2]
[336926368,1725244258049,-530.75,0.00025753,2]
[336926369,1725244258058,-1003.77,0.00025753,2]
[336926370,1725244258068,-500.0,0.00025753,2]
[336926371,1725244258078,-500.0,0.00025753,2]
[336926372,1725244258087,-500.0,0.00025753,2]
[336926373,1725244258097,-1362.28,0.00025753,2]
[336926374,1725244258106,-1079.24,0.00025753,2]
[336926375,1725244258116,-1444.21,0.00025753,2]
[336926376,1725244258125,-1337.77,0.00025753,2]
[336926377,1725244258134,-500.0,0.00025753,2]
[336926378,1725244258143,-1483.34,0.00025753,2]
[336926379,1725244258152,-575.48,0.00025753,2]
[336926380,1725244258161,-500.0,0.00025753,2]
[336926381,1725244258171,-500.0,0.00025753,2]
[336926382,1725244258180,-1890.91,0.00025753,2]
[336926383,1725244258190,-4444.47,0.00025753,2]
[336926384,1725244258199,-1535.45,0.00025753,2]
[336926385,1725244258208,-151.0,0.00025753,7]
[336926386,1725244258218,-1845.12,0.00025753,2]
[336926387,1725244258227,-2261.1,0.00025753,2]
[336926388,1725244258236,-619.59,0.00025753,2]
[336926389,1725244258246,-500.0,0.00025753,2]
[336926390,1725244258255,-1434.23,0.00025753,2]
[336926391,1725244258266,-1255.7,0.00025753,2]
[336926392,1725244258276,-1004.6,0.00025753,2]
[336926393,1725244258286,-983.95,0.00025753,2]
[336926394,1725244258295,-578.71,0.00025753,2]
[336926395,1725244258305,-1246.24,0.00025753,2]
[336926396,1725244258314,-1327.41,0.00025753,2]
[336926397,1725244258324,-878.27,0.00025753,2]
[336926398,1725244258333,-1189.91,0.00025753,2]
[336926399,1725244258342,-919.9,0.00025753,2]
[336926400,1725244258351,-584.36,0.00025753,2]
[336926401,1725244258360,-500.0,0.00025753,2]
[336926402,1725244258370,-1473.81,0.00025753,2]
[336926403,1725244258379,-771.66,0.00025753,2]
[336926404,1725244258389,-523.46,0.00025753,2]
[336926405,1725244258399,-151.0,0.00025753,7]
[336926406,1725244258409,-532.51,0.00025753,2]
[336926407,1725244258420,-151.0,0.00025753,7]
[336926408,1725244258432,-854.3,0.00025753,2]
[336926409,1725244258441,-522.04,0.00025753,2]
[336926410,1725244258453,-7078.87,0.00025753,2]
[336926411,1725244258462,-500.0,0.00025753,2]
[336926412,1725244258473,-828.09,0.00025753,2]
[336926413,1725244258484,-500.0,0.00025753,2]
[336926414,1725244258495,-500.0,0.00025753,2]
[336926415,1725244258508,-1368.86,0.00025753,2]
[336926416,1725244258529,-1446.34,0.00025753,2]
[336926417,1725244258540,-500.0,0.00025753,2]
[336926418,1725244258551,-500.0,0.00025753,2]
[336926419,1725244258560,-1217.74,0.00025753,2]
[336926420,1725244258570,-1577.1,0.00025753,2]